fUSD/lending_fUSD_20260628
["ID","MTS","AMOUNT","RATE_DAILY","PERIOD"]
[426544794,1782576640000,-157.97,0.0002545,7]
[426544790,1782576640000,-150.0,0.00025397,7]
[426544798,1782576640000,-10345.63168575,0.00025489,2]
[426544800,1782576640000,-152.26269015,0.00025593,2]
[426544778,1782576640000,-152.26269015,0.00025045,2]
[426544826,1782576640000,-4300.0,0.000259,9]
[426544805,1782576640000,-150.0,0.00025675,7]
[426544807,1782576640000,-500.0,0.00025699,2]
[426544809,1782576640000,-180.95128057,0.00025832,2]
[426544813,1782576640000,-420.50297169,0.00025832,2]
[426544819,1782576640000,-450.82912602,0.00025832,2]
[426544815,1782576640000,-459.90059348,0.00025832,2]
[426544817,1782576640000,-469.27690215,0.00025832,2]
[426544811,1782576640000,-440.77575727,0.00025832,2]
[426544821,1782576640000,-229.9487,0.00025843,2]
[426544824,1782576640000,-152.26269024,0.00025867,2]
[426544803,1782576640000,-150.0,0.00025675,7]
[426544828,1782576640000,-3563.0,0.0002594,2]
[426544973,1782576641000,-1812.16,0.00027561,7]
[426544977,1782576641000,-21165.65550432,0.0002759,2]
[426544975,1782576641000,-1812.16780925,0.00027561,7]
[426544989,1782576641000,-157.97,0.00027828,7]
[426544969,1782576641000,-1812.16,0.00027561,7]
[426544965,1782576641000,-6690.19793302,0.00027556,2]
[426544952,1782576641000,-236.17348297,0.00027397,2]
[426544963,1782576641000,-500.0,0.000275,7]
[426544951,1782576641000,-5170.5,0.00027397,10]
[426544961,1782576641000,-816.0252925,0.0002745,2]
[426544949,1782576641000,-1500.0,0.00027397,2]
[426544971,1782576641000,-1812.16,0.00027561,7]
[426544967,1782576641000,-1812.16,0.00027561,7]
[426544979,1782576641000,-3706.77990619,0.00027658,2]
[426545007,1782576641000,-6690.19793302,0.00028,2]
[426544981,1782576641000,-513.37,0.0002772,2]
[426544987,1782576641000,-3706.77990619,0.00027827,2]
[426544993,1782576641000,-8700.0,0.000279,10]
[426544983,1782576641000,-6690.19793302,0.00027778,2]
[426544991,1782576641000,-153.23,0.00027828,7]
[426544995,1782576641000,-212.36486878,0.000279,2]
[426544999,1782576641000,-14159.0286972,0.00027965,2]
[426545001,1782576641000,-3032.4389351,0.00027965,2]
[426544997,1782576641000,-1797.23092421,0.00027935,2]
[426545003,1782576641000,-114808.3062791,0.00027965,2]
[426545005,1782576641000,-580.9162384,0.00027965,2]
[426545013,1782576641000,-217.60059628,0.00028,2]
[426544947,1782576641000,-168.52,0.00027397,2]
[426544985,1782576641000,-3706.77990619,0.00027803,2]
[426544955,1782576641000,-472.34696594,0.00027397,2]
[426544891,1782576641000,-236.87731203,0.00026403,2]
[426544945,1782576641000,-151.27836285,0.00027397,2]
[426545017,1782576641000,-17548.17,0.00028,2]
[426544889,1782576641000,-1722.08394521,0.000264,7]
[426544893,1782576641000,-287.15997775,0.00026403,2]
[426544895,1782576641000,-459.8974,0.00026403,2]
[426544897,1782576641000,-6690.19793302,0.00026444,2]
[426544903,1782576641000,-6690.19793302,0.00026667,2]
[426544908,1782576641000,-1812.16,0.00026799,2]
[426544916,1782576641000,-437467.32559519,0.000268,2]
[426544899,1782576641000,-897.69285736,0.00026567,2]
[426544905,1782576641000,-3706.77990619,0.0002672,2]
[426544910,1782576641000,-1812.16,0.00026799,2]
[426544901,1782576641000,-46547.52429159,0.00026667,2]
[426544906,1782576641000,-3706.77990619,0.00026798,2]
[426544959,1782576641000,-609.97598779,0.00027447,2]
[426544914,1782576641000,-500.0,0.00026799,2]
[426544911,1782576641000,-500.0,0.00026799,2]
[426544923,1782576641000,-3706.77990619,0.00026929,2]
[426544920,1782576641000,-6690.19793302,0.00026889,2]
[426544921,1782576641000,-6500.0,0.000269,9]
[426544926,1782576641000,-10345.63168575,0.00026993,2]
[426544930,1782576641000,-153.23,0.00027035,2]
[426544938,1782576641000,-155.88429786,0.0002726,2]
[426544936,1782576641000,-6690.19793302,0.00027111,2]
[426544932,1782576641000,-3706.77990619,0.00027054,2]
[426544940,1782576641000,-6690.19793302,0.00027333,2]
[426544928,1782576641000,-157.97,0.00027035,2]
[426544934,1782576641000,-3706.77990619,0.00027099,2]
[426544942,1782576641000,-500.0,0.00027396,2]
[426544917,1782576641000,-3706.77990619,0.00026805,2]
[426545015,1782576641000,-217.60059626,0.00028,2]
[426544957,1782576641000,-708.5204489,0.00027397,2]
[426545011,1782576641000,-151.0,0.00028,7]
[426545090,1782576641000,-151.0,0.0002845,3]
[426545092,1782576641000,-151.0,0.0002845,3]
[426545096,1782576641000,-151.0,0.0002845,3]
[426545080,1782576641000,-151.0,0.0002845,3]
[426545086,1782576641000,-151.0,0.0002845,3]
[426545082,1782576641000,-151.0,0.0002845,3]
[426545084,1782576641000,-151.0,0.0002845,3]
[426545094,1782576641000,-151.0,0.0002845,3]
[426545098,1782576641000,-151.0,0.0002845,3]
[426545104,1782576641000,-507.27036575,0.00028456,60]
[426545101,1782576641000,-151.0,0.0002845,3]
[426545108,1782576641000,-157.980708,0.00028528,7]
[426545105,1782576641000,-478.61597921,0.00028476,2]
[426545106,1782576641000,-237.18007815,0.00028485,2]
[426545107,1782576641000,-10345.63168575,0.00028496,2]
[426545109,1782576641000,-151.0,0.00028528,7]
[426545100,1782576641000,-151.0,0.0002845,3]
[426545111,1782576641000,-151.0,0.00028528,7]
[426545110,1782576641000,-151.0,0.00028528,7]
[426545113,1782576641000,-151.0,0.00028528,7]
[426545117,1782576641000,-221.1,0.00028595,7]
[426545115,1782576641000,-151.0,0.00028528,7]
[426545130,1782576641000,-158.0,0.00028676,30]
[426545119,1782576641000,-911.15,0.0002861,7]
[426545132,1782576641000,-221.0,0.00028676,30]
[426545120,1782576641000,-157.97,0.0002862,30]
[426545122,1782576641000,-153.23,0.0002862,30]
[426545124,1782576641000,-299.0,0.00028676,30]
[426545126,1782576641000,-334.0,0.00028676,30]
[426545076,1782576641000,-151.0,0.0002845,3]
[426545078,1782576641000,-151.0,0.0002845,3]
[426545009,1782576641000,-151.0,0.00028,7]
[426545088,1782576641000,-151.0,0.0002845,3]
[426545128,1782576641000,-155.0,0.00028676,30]
[426545019,1782576641000,-3706.77990619,0.00028018,2]
[426545021,1782576641000,-3706.77990619,0.00028062,2]
[426545030,1782576641000,-183.73152602,0.00028169,2]
[426545028,1782576641000,-153.44718912,0.00028141,2]
[426545026,1782576641000,-1258.55771033,0.00028141,2]
[426545024,1782576641000,-216.51184279,0.00028075,2]
[426545034,1782576641000,-150.0,0.00028219,7]
[426545038,1782576641000,-151.0,0.00028238,7]
[426545041,1782576641000,-9800.2258129,0.00028241,2]
[426545036,1782576641000,-551.91385334,0.00028231,2]
[426545039,1782576641000,-6242.1320065,0.00028241,2]
[426545043,1782576641000,-1486974.3477285,0.00028241,2]
[426545045,1782576641000,-151.0,0.00028241,7]
[426545032,1782576641000,-3706.77990619,0.00028173,2]
[426545049,1782576641000,-151.0,0.00028241,7]
[426545047,1782576641000,-151.0,0.00028241,7]
[426545072,1782576641000,-151.0,0.0002845,3]
[426545064,1782576641000,-151.0,0.0002845,3]
[426545070,1782576641000,-151.0,0.0002845,3]
[426545061,1782576641000,-182.188738,0.00028397,7]
[426545063,1782576641000,-151.0,0.0002845,3]
[426545068,1782576641000,-151.0,0.0002845,3]
[426545059,1782576641000,-3706.77990619,0.00028314,2]
[426545055,1782576641000,-152.353662,0.00028241,7]
[426545066,1782576641000,-151.0,0.0002845,3]
[426545057,1782576641000,-659.46,0.000283,7]
[426545074,1782576641000,-151.0,0.0002845,3]
[426545051,1782576641000,-151.0,0.00028241,7]
[426545053,1782576641000,-181.206408,0.00028241,7]
[426545208,1782576642000,-151.0,0.0002933,3]
[426545192,1782576642000,-157.47,0.000292,30]
[426545190,1782576642000,-200.0,0.0002915,2]
[426545196,1782576642000,-151.0,0.0002933,3]
[426545194,1782576642000,-151.0,0.0002933,3]
[426545210,1782576642000,-151.0,0.0002933,3]
[426545198,1782576642000,-151.0,0.0002933,3]
[426545214,1782576642000,-350.0,0.00029419,13]
[426545212,1782576642000,-151.0,0.0002933,3]
[426545216,1782576642000,-883.81,0.00029468,7]
[426545206,1782576642000,-151.0,0.0002933,3]
[426545220,1782576642000,-624.14,0.000295,7]
[426545233,1782576642000,-155.0,0.00029676,30]
[426545230,1782576642000,-334.0,0.00029676,30]
[426545218,1782576642000,-721.46,0.000295,30]
[426545222,1782576642000,-350.0,0.00029527,2]
[426545236,1782576642000,-158.0,0.00029676,30]
[426545224,1782576642000,-1797.23092421,0.00029671,2]
[426545242,1782576642000,-153.0,0.00029676,30]
[426545240,1782576642000,-221.0,0.00029676,30]
[426545244,1782576642000,-154.0,0.00029676,30]
[426545245,1782576642000,-399.0,0.00029676,30]
[426545202,1782576642000,-151.0,0.0002933,3]
[426545227,1782576642000,-299.0,0.00029676,30]
[426545200,1782576642000,-151.0,0.0002933,3]
[426545160,1782576642000,-373.0,0.00028892,2]
[426545187,1782576642000,-11698.0,0.0002912,20]
[426545136,1782576642000,-154.0,0.00028676,30]
[426545134,1782576642000,-153.0,0.00028676,30]
[426545138,1782576642000,-399.0,0.00028676,30]
[426545144,1782576642000,-182.0,0.00028676,30]
[426545147,1782576642000,-445.36272009,0.00028678,7]
[426545149,1782576642000,-164.0,0.00028681,30]
[426545153,1782576642000,-355.3049725,0.00028778,2]
[426545156,1782576642000,-7101.0,0.00028812,10]
[426545151,1782576642000,-215.0,0.00028681,30]
[426545158,1782576642000,-156.84109195,0.0002889,2]
[426545155,1782576642000,-21165.65550432,0.00028795,2]
[426545204,1782576642000,-151.0,0.0002933,3]
[426545162,1782576642000,-3563.0,0.0002894,2]
[426545176,1782576642000,-500.0,0.000291,7]
[426545172,1782576642000,-50000.0,0.00029,2]
[426545173,1782576642000,-500.0,0.000291,7]
[426545170,1782576642000,-416.0,0.00029,7]
[426545168,1782576642000,-10180.78997143,0.00028996,7]
[426545166,1782576642000,-1230.0,0.0002894,2]
[426545177,1782576642000,-500.0,0.000291,7]
[426545179,1782576642000,-500.0,0.000291,7]
[426545181,1782576642000,-500.0,0.000291,7]
[426545183,1782576642000,-174.55,0.000291,7]
[426545185,1782576642000,-659.46,0.000291,7]
[426545164,1782576642000,-282.0,0.0002894,2]
[426545249,1782576642000,-164.0,0.00029681,30]
[426545247,1782576642000,-182.0,0.00029676,30]
[426545254,1782576642000,-350.0,0.00029684,2]
[426545295,1782576642000,-50000.0,0.0003,2]
[426545296,1782576642000,-21165.65550432,0.0003,2]
[426545292,1782576642000,-22500.0,0.0003,2]
[426545298,1782576642000,-208.78318121,0.0003,14]
[426545299,1782576642000,-10345.63168575,0.0003,2]
[426545311,1782576642000,-49618.0,0.00030082,2]
[426545308,1782576642000,-151.0,0.00030079,7]
[426545310,1782576642000,-11698.0,0.0003008,20]
[426545312,1782576642000,-435139.21109356,0.0003009,2]
[426545314,1782576642000,-482.44,0.0003009,2]
[426545313,1782576642000,-551.91385334,0.0003009,2]
[426545293,1782576642000,-151.0,0.0003,2]
[426545316,1782576642000,-151.0,0.00030097,7]
[426545251,1782576642000,-215.0,0.00029681,30]
[426545315,1782576642000,-151.0,0.00030097,7]
[426545319,1782576642000,-151.0,0.00030097,7]
[426545306,1782576642000,-559.0,0.00030047,2]
[426545321,1782576642000,-300.0,0.00030099,10]
[426545320,1782576642000,-151.0,0.00030097,7]
[426545323,1782576642000,-666.0,0.00030099,10]
[426545322,1782576642000,-300.0,0.00030099,10]
[426545324,1782576642000,-300.0,0.00030099,10]
[426545326,1782576642000,-500023.85467047,0.000301,7]
[426545325,1782576642000,-620.9713389,0.000301,15]
[426545317,1782576642000,-151.0,0.00030097,7]
[426545297,1782576642000,-816.0252925,0.0003,2]
[426545318,1782576642000,-151.0,0.00030097,7]
[426545303,1782576642000,-109016.728863,0.00030008,2]
[426545294,1782576642000,-659.46,0.0003,7]
[426545256,1782576642000,-10900.0,0.000297,10]
[426545258,1782576642000,-2100.0,0.000298,10]
[426545264,1782576642000,-365.94876,0.000298,2]
[426545270,1782576642000,-151.0,0.000299,7]
[426545268,1782576642000,-200.0,0.00029858,2]
[426545260,1782576642000,-365.94875,0.000298,2]
[426545266,1782576642000,-1545.97940853,0.00029843,7]
[426545262,1782576642000,-365.94876,0.000298,2]
[426545272,1782576642000,-151.0,0.000299,7]
[426545282,1782576642000,-267.53529414,0.00029971,2]
[426545279,1782576642000,-1043.21132818,0.00029933,7]
[426545274,1782576642000,-151.0,0.000299,7]
[426545287,1782576642000,-12499.99,0.0003,2]
[426545301,1782576642000,-292.69643004,0.0003,14]
[426545290,1782576642000,-5831.11,0.0003,2]
[426545291,1782576642000,-10000.0,0.0003,2]
[426545286,1782576642000,-12499.97,0.0003,2]
[426545284,1782576642000,-250.72019699,0.0003,2]
[426545277,1782576642000,-165.18892212,0.00029919,2]
[426545283,1782576642000,-609.97598779,0.0002999,2]
[426545285,1782576642000,-2499.97,0.0003,2]
[426545289,1782576642000,-7054.42,0.0003,2]
[426545276,1782576642000,-2100.0,0.000299,10]
[426545281,1782576642000,-10652.0,0.00029964,10]
[426545288,1782576642000,-14598.1,0.0003,2]
[426545331,1782576643000,-5266.78111499,0.00027397,10]
[426545341,1782576644000,-513.01964716,0.00025243,2]
[426545343,1782576644000,-276.96047003,0.000301,7]
[426545339,1782576644000,-4593.01888501,0.00027397,10]
[426545340,1782576644000,-170200.21034028,0.000301,7]
[426545342,1782576644000,-38957.17328371,0.000301,7]
[426545349,1782576645000,-602487.93832607,0.000301,7]
[426545344,1782576645000,-513.01964716,0.00026829,2]
[426545345,1782576645000,-3.14015284,0.000301,7]
[426545351,1782576646000,-106930.67973843,0.000301,7]
[426545362,1782576675000,500.0,0.00013698,2]
[426545363,1782576675000,500.0,0.00013698,2]
[426545366,1782576676000,500.0,0.00013698,2]
[426545365,1782576676000,500.0,0.00013698,2]
[426545364,1782576676000,500.0,0.00013698,2]
[426545368,1782576677000,500.0,0.00013698,2]
[426545367,1782576677000,500.0,0.00013698,2]
[426545370,1782576697000,500.0,0.0002824,120]
[426545369,1782576697000,500.0,0.00027964,120]
[426545373,1782576698000,250.04,0.0002824,120]
[426545372,1782576698000,500.0,0.0002824,120]
[426545371,1782576698000,500.0,0.0002824,120]
[426545374,1782576719000,500.0,0.00013698,2]
[426545375,1782576720000,500.0,0.00013698,2]
[426545376,1782576720000,500.0,0.00013698,2]
[426545380,1782576721000,500.0,0.00013698,2]
[426545379,1782576721000,500.0,0.00013698,2]
[426545378,1782576721000,500.0,0.00013698,2]
[426545377,1782576721000,500.0,0.00013698,2]
[426545383,1782576722000,500.0,0.00013698,2]
[426545382,1782576722000,500.0,0.00013698,2]
[426545381,1782576722000,500.0,0.00013698,2]
[426545384,1782576723000,526.60827864,0.00013698,2]
[426545385,1782576729000,151.0,0.00037338,120]
[426545386,1782576729000,151.0,0.00037338,120]
[426545388,1782576730000,151.0,0.00037338,120]
[426545387,1782576730000,151.0,0.00037338,120]
[426545389,1782576731000,151.0,0.00037338,120]
[426545391,1782576731000,151.0,0.00037338,120]
[426545390,1782576731000,151.0,0.00037338,120]
[426545393,1782576732000,151.0,0.00037338,120]
[426545392,1782576732000,151.0,0.00037338,120]
[426545395,1782576733000,151.0,0.00037338,120]
[426545394,1782576733000,151.0,0.00037338,120]
[426545396,1782576734000,179.932005,0.00037338,120]
[426545399,1782576751000,151.0,0.00037338,120]
[426545398,1782576751000,151.0,0.00037338,120]
[426545400,1782576752000,151.0,0.00037338,120]
[426545401,1782576753000,158.82168,0.00037338,120]
[426545402,1782576756000,228.727206,0.00037338,120]
[426545403,1782576766000,2241.81,0.00013698,2]
[426545406,1782576767000,2241.81,0.00013698,2]
[426545405,1782576767000,2241.81,0.00013698,2]
[426545404,1782576767000,2241.81,0.00013698,2]
[426545409,1782576768000,2241.81,0.00013698,2]
[426545408,1782576768000,2241.81,0.00013698,2]
[426545407,1782576768000,2241.81,0.00013698,2]
[426545410,1782576769000,2241.81,0.00013698,2]
[426545412,1782576769000,2241.81,0.00013698,2]
[426545411,1782576769000,2241.81,0.00013698,2]
[426545413,1782576770000,2241.81,0.00013698,2]
[426545415,1782576770000,2241.81,0.00014499,2]
[426545414,1782576770000,2241.81,0.00013698,2]
[426545418,1782576771000,2241.81,0.00014999,2]
[426545417,1782576771000,2241.81,0.00014999,2]
[426545416,1782576771000,2241.81,0.00014999,2]
[426545419,1782576771000,2241.81,0.00014999,2]
[426545422,1782576772000,2241.81,0.00014999,2]
[426545421,1782576772000,2241.81,0.00014999,2]
[426545420,1782576772000,2241.81,0.00014999,2]
[426545426,1782576773000,2242.01489004,0.00014999,2]
[426545425,1782576773000,2241.81,0.00014999,2]
[426545424,1782576773000,2241.81,0.00014999,2]
[426545423,1782576773000,2241.81,0.00014999,2]
[426545427,1782576831000,500.0,0.00013698,2]
[426545429,1782576831000,500.0,0.00013698,2]
[426545428,1782576831000,500.0,0.00013698,2]
[426545430,1782576831000,500.0,0.00013698,2]
[426545432,1782576832000,500.0,0.00013698,2]
[426545431,1782576832000,500.0,0.00013698,2]
[426545435,1782576833000,500.0,0.00013698,2]
[426545434,1782576833000,500.0,0.00013698,2]
[426545433,1782576833000,500.0,0.00013698,2]
[426545438,1782576834000,500.0,0.00013698,2]
[426545437,1782576834000,500.0,0.00013698,2]
[426545436,1782576834000,500.0,0.00013698,2]
[426545439,1782576835000,500.0,0.00014499,2]
[426545441,1782576835000,500.0,0.00014999,2]
[426545442,1782576835000,507.98327991,0.00014999,2]
[426545440,1782576835000,500.0,0.00014999,2]
[426545443,1782576847000,691.86,0.00024797,120]
[426545444,1782576847000,691.86,0.00027896,120]
[426545445,1782576848000,691.86,0.00030996,120]
[426545449,1782576856000,789.78,0.00013698,2]
[426545448,1782576856000,789.78,0.00013698,2]
[426545447,1782576856000,789.78,0.00013698,2]
[426545446,1782576856000,789.78,0.00013698,2]
[426545452,1782576857000,789.78,0.00013698,2]
[426545451,1782576857000,789.78,0.00013698,2]
[426545450,1782576857000,789.78,0.00013698,2]
[426545453,1782576858000,789.78,0.00013698,2]
[426545454,1782576858000,789.78,0.00013698,2]
[426545456,1782576858000,789.78,0.00013698,2]
[426545455,1782576858000,789.78,0.00013698,2]
[426545459,1782576859000,789.78,0.00014999,2]
[426545458,1782576859000,789.78,0.00014499,2]
[426545457,1782576859000,789.78,0.00013698,2]
[426545462,1782576860000,789.78,0.00014999,2]
[426545461,1782576860000,789.78,0.00014999,2]
[426545460,1782576860000,789.78,0.00014999,2]
[426545464,1782576861000,789.78,0.00014999,2]
[426545463,1782576861000,789.78,0.00014999,2]
[426545465,1782576862000,789.78,0.00014999,2]
[426545466,1782576862000,789.78,0.00014999,2]
[426545468,1782576862000,789.78,0.00014999,2]
[426545467,1782576862000,789.78,0.00014999,2]
[426545469,1782576863000,789.91766551,0.00014999,2]
[426545470,1782576870000,151.2,0.00031,120]
[426545471,1782576875000,500.0,0.00013698,2]
[426545475,1782576876000,500.0,0.00013698,2]
[426545474,1782576876000,500.0,0.00013698,2]
[426545473,1782576876000,500.0,0.00013698,2]
[426545472,1782576876000,500.0,0.00013698,2]
[426545478,1782576877000,500.0,0.00013698,2]
[426545477,1782576877000,500.0,0.00013698,2]
[426545476,1782576877000,500.0,0.00013698,2]
[426545479,1782576878000,500.0,0.00013698,2]
[426545480,1782576878000,500.0,0.00013698,2]
[426545483,1782576879000,500.0,0.00014499,2]
[426545482,1782576879000,500.0,0.00013698,2]
[426545481,1782576879000,500.0,0.00013698,2]
[426545487,1782576880000,500.0,0.00014999,2]
[426545486,1782576880000,500.0,0.00014999,2]
[426545485,1782576880000,500.0,0.00014999,2]
[426545484,1782576880000,500.0,0.00014999,2]
[426545489,1782576881000,210.08,0.00014999,2]
[426545488,1782576881000,500.0,0.00014999,2]
[426545490,1782576903000,237.3,0.000309,120]
[426545491,1782576925000,500.0,0.00013698,2]
[426545493,1782576925000,509.37574809,0.00013698,2]
[426545492,1782576925000,500.0,0.00013698,2]
[426545494,1782576938000,480.497257,0.00037315,120]
[426545495,1782576939000,480.497257,0.00037315,120]
[426545496,1782576939000,480.497257,0.00037315,120]
[426545498,1782576940000,480.497257,0.00037315,120]
[426545497,1782576940000,480.497257,0.00037315,120]
[426545499,1782576940000,480.497257,0.00037315,120]
[426545501,1782576941000,480.497257,0.00037315,120]
[426545500,1782576941000,480.497257,0.00037315,120]
[426545504,1782576942000,480.497257,0.00037315,120]
[426545503,1782576942000,480.497257,0.00037315,120]
[426545502,1782576942000,480.497257,0.00037315,120]
[426545506,1782576943000,480.497257,0.00037315,120]
[426545505,1782576943000,480.497257,0.00037315,120]
[426545507,1782576944000,480.497257,0.00037315,120]
[426545508,1782576944000,480.497257,0.00037315,120]
[426545511,1782576945000,480.497257,0.00037315,120]
[426545510,1782576945000,480.497257,0.00037315,120]
[426545509,1782576945000,500.0,0.00030099,120]
[426545514,1782576946000,480.497264,0.00037315,120]
[426545513,1782576946000,480.497257,0.00037315,120]
[426545512,1782576946000,480.497257,0.00037315,120]
[426545516,1782576969000,151.0,0.00037315,120]
[426545515,1782576969000,151.0,0.00037315,120]
[426545517,1782577000000,500.0,0.00013698,2]
[426545518,1782577001000,500.0,0.00013698,2]
[426545519,1782577001000,500.0,0.00013698,2]
[426545521,1782577001000,500.0,0.00013698,2]
[426545520,1782577001000,500.0,0.00013698,2]
[426545522,1782577016000,598.78,0.00013698,2]
[426545523,1782577016000,598.78,0.00013698,2]
[426545527,1782577017000,598.78,0.00013698,2]
[426545526,1782577017000,598.78,0.00013698,2]
[426545525,1782577017000,598.78,0.00013698,2]
[426545524,1782577017000,598.78,0.00013698,2]
[426545530,1782577018000,598.78,0.00013698,2]
[426545529,1782577018000,598.78,0.00013698,2]
[426545528,1782577018000,598.78,0.00013698,2]
[426545531,1782577019000,598.78,0.00013698,2]
[426545533,1782577019000,598.78,0.00013698,2]
[426545532,1782577019000,598.78,0.00013698,2]
[426545535,1782577020000,598.78,0.00014999,2]
[426545534,1782577020000,598.78,0.00014499,2]
[426545538,1782577021000,598.78,0.00014999,2]
[426545537,1782577021000,598.78,0.00014999,2]
[426545536,1782577021000,598.78,0.00014999,2]
[426545540,1782577022000,598.78,0.00014999,2]
[426545539,1782577022000,598.78,0.00014999,2]
[426545542,1782577023000,598.78,0.00014999,2]
[426545541,1782577023000,598.78,0.00014999,2]
[426545543,1782577024000,598.78,0.00014999,2]
[426545544,1782577024000,598.78,0.00014999,2]
[426545545,1782577024000,598.83065149,0.00014999,2]
[426545546,1782577059000,524.8,0.00013698,2]
[426545548,1782577059000,524.8,0.00013698,2]
[426545547,1782577059000,524.8,0.00013698,2]
[426545551,1782577060000,524.8,0.00013698,2]
[426545550,1782577060000,524.8,0.00013698,2]
[426545549,1782577060000,524.8,0.00013698,2]
[426545554,1782577061000,524.8,0.00013698,2]
[426545553,1782577061000,524.8,0.00013698,2]
[426545552,1782577061000,524.8,0.00013698,2]
[426545556,1782577062000,524.8,0.00013698,2]
[426545555,1782577062000,524.8,0.00013698,2]
[426545558,1782577062000,524.8,0.00014499,2]
[426545557,1782577062000,524.8,0.00013698,2]
[426545560,1782577063000,524.8,0.00014999,2]
[426545559,1782577063000,524.8,0.00014999,2]
[426545561,1782577063000,524.8,0.00014999,2]
[426545563,1782577064000,524.8,0.00014999,2]
[426545562,1782577064000,524.8,0.00014999,2]
[426545566,1782577065000,524.8,0.00014999,2]
[426545565,1782577065000,524.8,0.00014999,2]
[426545564,1782577065000,524.8,0.00014999,2]
[426545567,1782577066000,524.8,0.00014999,2]
[426545569,1782577066000,524.87897703,0.00014999,2]
[426545568,1782577066000,524.8,0.00014999,2]
[426545570,1782577271000,163.20602092,0.00030099,120]
[426545572,1782577291000,500.0,0.00028995,120]
[426545571,1782577291000,500.0,0.00028995,120]
[426545573,1782577291000,500.0,0.00028995,120]
[426545577,1782577292000,500.0,0.00030099,120]
[426545576,1782577292000,500.0,0.00030099,120]
[426545575,1782577292000,500.0,0.00029999,120]
[426545574,1782577292000,500.0,0.00029499,120]
[426545578,1782577293000,500.0,0.00030099,120]
[426545579,1782577392000,83678.57536173,0.00037302,120]
[426545580,1782577429000,500.0,0.00014884,2]
[426545581,1782577430000,500.0,0.00014884,2]
[426545590,1782577761000,-151.0,0.00015158,2]
[426545592,1782577761000,-151.0,0.00015158,2]
[426545591,1782577761000,-151.0,0.00015158,2]
[426545589,1782577761000,-152.0,0.00015158,2]
[426545587,1782577761000,-300.0,0.00015158,2]
[426545584,1782577761000,-646.30724891,0.00015158,2]
[426545586,1782577761000,-300.0,0.00015158,2]
[426545585,1782577761000,-300.0,0.00015158,2]
[426545583,1782577761000,-600.0,0.00015158,2]
[426545582,1782577761000,-300.0,0.00015158,2]
[426545588,1782577761000,-200.0,0.00015158,2]
[426545593,1782577761000,-151.0,0.00015158,2]
[426545597,1782577761000,-150.0,0.00015158,2]
[426545595,1782577761000,-152.0,0.00015158,2]
[426545607,1782577761000,-40.31402509,0.00015158,2]
[426545605,1782577761000,-150.0,0.00015158,2]
[426545606,1782577761000,-151.0,0.00015158,2]